[Event "*** Titled Tuesday Blitz"]
[Site "Chess.com"]
[Date "2020.05.05"]
[Round "10"]
[White "Guenplen"]
[Black "GHANDEEVAM2003"]
[Result "0-1"]
[WhiteElo "2937"]
[BlackElo "2901"]
[TimeControl "180+1"]
[EndTime "12:00:18 PDT"]
[Termination "GHANDEEVAM2003 won by resignation"]

1. d4 {[%clk 0:03:00.9]} 1... Nf6 {[%clk 0:02:59.1]} 2. Bf4 {[%clk 0:02:57.4]}
2... e6 {[%clk 0:02:58.1]} 3. e3 {[%clk 0:02:57.3]} 3... c5 {[%clk 0:02:58.1]}
4. c3 {[%clk 0:02:51.8]} 4... Nc6 {[%clk 0:02:57.3]} 5. Nd2 {[%clk 0:02:50.6]}
5... d5 {[%clk 0:02:57]} 6. Ngf3 {[%clk 0:02:50.5]} 6... cxd4 {[%clk 0:02:57]}
7. exd4 {[%clk 0:02:51.4]} 7... Nh5 {[%clk 0:02:57.5]} 8. Be3 {[%clk 0:02:51.8]}
8... Bd6 {[%clk 0:02:57.3]} 9. Ne5 {[%clk 0:02:45.7]} 9... g6 {[%clk 0:02:56]}
10. Nd3 {[%clk 0:02:43.6]} 10... O-O {[%clk 0:02:54.5]} 11. g3 {[%clk 0:02:43]}
11... b6 {[%clk 0:02:50.4]} 12. Be2 {[%clk 0:02:36.1]} 12... Ng7 {[%clk
0:02:49.9]} 13. O-O {[%clk 0:02:36.2]} 13... Bb7 {[%clk 0:02:44.8]} 14. Bf4
{[%clk 0:02:32.4]} 14... f6 {[%clk 0:02:44.1]} 15. Bf3 {[%clk 0:02:23.5]} 15...
Ba6 {[%clk 0:02:21.7]} 16. Nb3 {[%clk 0:02:17.3]} 16... Bxf4 {[%clk 0:02:19.6]}
17. gxf4 {[%clk 0:02:09.8]} 17... Qd6 {[%clk 0:02:18.6]} 18. Nbc1 {[%clk
0:02:08.2]} 18... Nf5 {[%clk 0:01:50.6]} 19. Re1 {[%clk 0:02:06.7]} 19... h5
{[%clk 0:01:50.2]} 20. Be2 {[%clk 0:01:52]} 20... Rae8 {[%clk 0:01:48.3]} 21.
Bf1 {[%clk 0:01:51.1]} 21... Kh7 {[%clk 0:01:45.2]} 22. Ne2 {[%clk 0:01:36.7]}
22... Nh4 {[%clk 0:01:40.5]} 23. Ng3 {[%clk 0:01:33.6]} 23... Bxd3 {[%clk
0:01:34]} 24. Bxd3 {[%clk 0:01:34.5]} 24... Qxf4 {[%clk 0:01:34.4]} 25. Re3
{[%clk 0:01:20.1]} 25... Kh6 {[%clk 0:01:17.2]} 26. Bb5 {[%clk 0:01:17.1]} 26...
Nd8 {[%clk 0:01:04.1]} 27. Bxe8 {[%clk 0:01:16]} 27... Rxe8 {[%clk 0:01:05]} 28.
Qd3 {[%clk 0:01:12.9]} 28... Nf7 {[%clk 0:01:02.2]} 29. Ne2 {[%clk 0:01:08.2]}
29... Qg4+ {[%clk 0:00:50.2]} 30. Rg3 {[%clk 0:01:05]} 30... Qe4 {[%clk
0:00:50.7]} 31. Qe3+ {[%clk 0:00:53.8]} 31... Ng5 {[%clk 0:00:49.4]} 32. Qxe4
{[%clk 0:00:23.7]} 32... dxe4 {[%clk 0:00:50.3]} 33. Re3 {[%clk 0:00:16.1]}
33... Nf5 {[%clk 0:00:47.6]} 34. Ng3 {[%clk 0:00:09.3]} 34... Nxe3 {[%clk
0:00:43.4]} 35. fxe3 {[%clk 0:00:10.2]} 35... h4 {[%clk 0:00:43.9]} 36. Ne2
{[%clk 0:00:09.6]} 36... Nf3+ {[%clk 0:00:42.9]} 37. Kg2 {[%clk 0:00:09.8]}
37... g5 {[%clk 0:00:43.4]} 38. h3 {[%clk 0:00:10.2]} 38... Rg8 {[%clk
0:00:37.5]} 39. c4 {[%clk 0:00:10.5]} 39... g4 {[%clk 0:00:36.2]} 40. b4 {[%clk
0:00:10.5]} 40... g3 {[%clk 0:00:25.9]} 41. c5 {[%clk 0:00:10.1]} 41... bxc5
{[%clk 0:00:22.1]} 42. dxc5 {[%clk 0:00:06.3]} 42... Rd8 {[%clk 0:00:20.9]} 43.
Nd4 {[%clk 0:00:06.7]} 43... Nxd4 {[%clk 0:00:17.7]} 44. Rd1 {[%clk 0:00:04.5]}
44... e5 {[%clk 0:00:11.2]} 45. exd4 {[%clk 0:00:03.8]} 45... exd4 {[%clk
0:00:12.1]} 46. c6 {[%clk 0:00:04.2]} 46... d3 {[%clk 0:00:11.8]} 47. b5 {[%clk
0:00:02]} 47... Kg5 {[%clk 0:00:09.4]} 48. a4 {[%clk 0:00:02]} 48... Rc8 {[%clk
0:00:08.7]} 49. a5 {[%clk 0:00:02.1]} 49... a6 {[%clk 0:00:06.8]} 50. b6 {[%clk
0:00:01.6]} 50... Rxc6 {[%clk 0:00:07.2]} 51. b7 {[%clk 0:00:02.1]} 51... Rc2+
{[%clk 0:00:07.4]} 52. Kg1 {[%clk 0:00:01.7]} 52... Rb2 {[%clk 0:00:07.8]} 53.
Rb1 {[%clk 0:00:02.4]} 53... Rxb1+ {[%clk 0:00:07.7]} 0-1

[Event "*** Titled Tuesday Blitz"]
[Site "Chess.com"]
[Date "2020.05.05"]
[Round "10"]
[White "BelaKis"]
[Black "Rafael_Ventura"]
[Result "1-0"]
[WhiteElo "2091"]
[BlackElo "2283"]
[TimeControl "180+1"]
[EndTime "12:00:22 PDT"]
[Termination "BelaKis won by checkmate"]

1. Nf3 {[%clk 0:03:00.9]} 1... Nf6 {[%clk 0:02:59.6]} 2. g3 {[%clk 0:03:00.2]}
2... e6 {[%clk 0:02:59.2]} 3. Bg2 {[%clk 0:03:00.7]} 3... d5 {[%clk 0:02:59.6]}
4. O-O {[%clk 0:03:01.6]} 4... Be7 {[%clk 0:03:00.3]} 5. d3 {[%clk 0:03:02.2]}
5... O-O {[%clk 0:03:00.9]} 6. a3 {[%clk 0:03:02.6]} 6... b6 {[%clk 0:03:01]} 7.
Nbd2 {[%clk 0:03:03.5]} 7... Bb7 {[%clk 0:03:00.3]} 8. c4 {[%clk 0:03:04.1]}
8... Na6 {[%clk 0:03:00.3]} 9. b4 {[%clk 0:03:03.9]} 9... c5 {[%clk 0:03:00.7]}
10. b5 {[%clk 0:02:57.9]} 10... Nc7 {[%clk 0:03:00.7]} 11. a4 {[%clk 0:02:53.2]}
11... a6 {[%clk 0:02:59.7]} 12. Bb2 {[%clk 0:02:46.3]} 12... a5 {[%clk
0:02:56.1]} 13. Qc2 {[%clk 0:02:34.1]} 13... d4 {[%clk 0:02:48.8]} 14. e4 {[%clk
0:02:29.4]} 14... Nd7 {[%clk 0:02:48]} 15. Kh1 {[%clk 0:01:56.7]} 15... e5
{[%clk 0:02:45.4]} 16. Ng1 {[%clk 0:01:56.1]} 16... f5 {[%clk 0:02:32.3]} 17. f4
{[%clk 0:01:39.7]} 17... g6 {[%clk 0:02:16.1]} 18. Rae1 {[%clk 0:01:36.7]} 18...
Bd6 {[%clk 0:01:58]} 19. fxe5 {[%clk 0:01:25.9]} 19... Nxe5 {[%clk 0:01:54.3]}
20. exf5 {[%clk 0:01:13.8]} 20... Bxg2+ {[%clk 0:01:54.2]} 21. Kxg2 {[%clk
0:01:14.7]} 21... Rxf5 {[%clk 0:01:50.8]} 22. Ne4 {[%clk 0:01:00.8]} 22... Rxf1
{[%clk 0:01:45.6]} 23. Rxf1 {[%clk 0:01:00.7]} 23... Ng4 {[%clk 0:01:41.6]} 24.
Bc1 {[%clk 0:00:59.3]} 24... Be7 {[%clk 0:01:35.2]} 25. Qe2 {[%clk 0:00:57.5]}
25... Qd7 {[%clk 0:01:29.6]} 26. h3 {[%clk 0:00:51.2]} 26... Ne5 {[%clk
0:01:21.4]} 27. Bh6 {[%clk 0:00:50]} 27... Nf7 {[%clk 0:01:17.7]} 28. Bf4 {[%clk
0:00:35.9]} 28... Re8 {[%clk 0:01:16.6]} 29. Nf3 {[%clk 0:00:34.8]} 29... Bd8
{[%clk 0:01:15.6]} 30. Qf2 {[%clk 0:00:23.6]} 30... Ne6 {[%clk 0:01:13.8]} 31.
Bd2 {[%clk 0:00:21.1]} 31... Rf8 {[%clk 0:01:09.5]} 32. Qe2 {[%clk 0:00:21]}
32... Nd6 {[%clk 0:01:03.9]} 33. Nxd6 {[%clk 0:00:15.4]} 33... Qxd6 {[%clk
0:01:04.4]} 34. Bh6 {[%clk 0:00:13.4]} 34... Rf7 {[%clk 0:00:58]} 35. Nd2 {[%clk
0:00:13.5]} 35... Rxf1 {[%clk 0:00:56.6]} 36. Qxf1 {[%clk 0:00:14.4]} 36... Bc7
{[%clk 0:00:56.9]} 37. Ne4 {[%clk 0:00:14.3]} 37... Qe5 {[%clk 0:00:39.3]} 38.
Nf6+ {[%clk 0:00:14.4]} 38... Kh8 {[%clk 0:00:39.4]} 39. Qf3 {[%clk 0:00:14.5]}
39... Bd8 {[%clk 0:00:35.3]} 40. Ne4 {[%clk 0:00:14.4]} 40... Qf5 {[%clk
0:00:34]} 41. g4 {[%clk 0:00:13.6]} 41... Qxf3+ {[%clk 0:00:33.9]} 42. Kxf3
{[%clk 0:00:14.5]} 42... Kg8 {[%clk 0:00:34.3]} 43. g5 {[%clk 0:00:13.8]} 43...
Kf7 {[%clk 0:00:33.3]} 44. Nd6+ {[%clk 0:00:13.9]} 44... Ke7 {[%clk 0:00:31.1]}
45. Ne4 {[%clk 0:00:14.1]} 45... Kd7 {[%clk 0:00:20.4]} 46. h4 {[%clk
0:00:13.7]} 46... Be7 {[%clk 0:00:19.6]} 47. Kg4 {[%clk 0:00:14]} 47... Nc7
{[%clk 0:00:19]} 48. h5 {[%clk 0:00:13.6]} 48... Ne6 {[%clk 0:00:19]} 49. hxg6
{[%clk 0:00:12.8]} 49... hxg6 {[%clk 0:00:19.9]} 50. Nf6+ {[%clk 0:00:11.9]}
50... Bxf6 {[%clk 0:00:20.3]} 51. gxf6 {[%clk 0:00:12.2]} 51... Ke8 {[%clk
0:00:21.2]} 52. Bf4 {[%clk 0:00:10.8]} 52... Kf7 {[%clk 0:00:22.1]} 53. Be5
{[%clk 0:00:10]} 53... g5 {[%clk 0:00:22.1]} 54. Kf5 {[%clk 0:00:10.1]} 54... g4
{[%clk 0:00:20.7]} 55. Kxg4 {[%clk 0:00:10.2]} 55... Kg6 {[%clk 0:00:20.8]} 56.
Kf3 {[%clk 0:00:07.5]} 56... Kf5 {[%clk 0:00:20.9]} 57. Bb8 {[%clk 0:00:07.1]}
57... Kxf6 {[%clk 0:00:20.8]} 58. Ba7 {[%clk 0:00:07.9]} 58... Ke5 {[%clk
0:00:19.2]} 59. Bxb6 {[%clk 0:00:07.4]} 59... Ng7 {[%clk 0:00:19.6]} 60. Bxa5
{[%clk 0:00:07.4]} 60... Kd6 {[%clk 0:00:20.1]} 61. Bb6 {[%clk 0:00:07.5]} 61...
Nf5 {[%clk 0:00:19.9]} 62. a5 {[%clk 0:00:06.6]} 62... Kd7 {[%clk 0:00:20.5]}
63. a6 {[%clk 0:00:06.7]} 63... Kc8 {[%clk 0:00:20.8]} 64. Bxc5 {[%clk
0:00:06.9]} 64... Kb8 {[%clk 0:00:21]} 65. Ke4 {[%clk 0:00:07.3]} 65... Ng3+
{[%clk 0:00:21.4]} 66. Kxd4 {[%clk 0:00:07]} 66... Ne2+ {[%clk 0:00:22.3]} 67.
Kd5 {[%clk 0:00:07.6]} 67... Nc3+ {[%clk 0:00:22]} 68. Kc6 {[%clk 0:00:08.5]}
68... Na4 {[%clk 0:00:21.3]} 69. b6 {[%clk 0:00:09.1]} 69... Nxc5 {[%clk
0:00:20.2]} 70. Kxc5 {[%clk 0:00:09]} 70... Ka8 {[%clk 0:00:20.3]} 71. Kc6
{[%clk 0:00:09.9]} 71... Kb8 {[%clk 0:00:20.9]} 72. d4 {[%clk 0:00:10.8]} 72...
Kc8 {[%clk 0:00:21.3]} 73. d5 {[%clk 0:00:11.7]} 73... Kb8 {[%clk 0:00:21.9]}
74. d6 {[%clk 0:00:12.6]} 74... Kc8 {[%clk 0:00:22.3]} 75. a7 {[%clk 0:00:12.2]}
75... Kd8 {[%clk 0:00:22.2]} 76. a8=Q# {[%clk 0:00:13.1]} 1-0

[Event "*** Titled Tuesday Blitz"]
[Site "Chess.com"]
[Date "2020.05.05"]
[Round "10"]
[White "MPGM"]
[Black "Dinamo81"]
[Result "1/2-1/2"]
[WhiteElo "2527"]
[BlackElo "2635"]
[TimeControl "180+1"]
[EndTime "12:00:23 PDT"]
[Termination "Game drawn - insufficient material"]

1. d4 {[%clk 0:03:00.9]} 1... e6 {[%clk 0:02:58.7]} 2. c3 {[%clk 0:02:55.6]}
2... d5 {[%clk 0:02:55.8]} 3. Nf3 {[%clk 0:02:53.7]} 3... Nf6 {[%clk 0:02:51]}
4. Bg5 {[%clk 0:02:52.9]} 4... c5 {[%clk 0:02:49.3]} 5. e3 {[%clk 0:02:52.2]}
5... Nc6 {[%clk 0:02:49]} 6. Nbd2 {[%clk 0:02:51.9]} 6... h6 {[%clk 0:02:45.5]}
7. Bh4 {[%clk 0:02:50.2]} 7... Be7 {[%clk 0:02:40.6]} 8. Bd3 {[%clk 0:02:49.6]}
8... O-O {[%clk 0:02:29.7]} 9. O-O {[%clk 0:02:49.8]} 9... b6 {[%clk 0:02:27.4]}
10. Qe2 {[%clk 0:02:49.4]} 10... Bb7 {[%clk 0:02:27.3]} 11. Ne5 {[%clk
0:02:42.2]} 11... Nxe5 {[%clk 0:02:18.2]} 12. dxe5 {[%clk 0:02:43.1]} 12... Nd7
{[%clk 0:02:18.3]} 13. Bxe7 {[%clk 0:02:43.6]} 13... Qxe7 {[%clk 0:02:19.2]} 14.
f4 {[%clk 0:02:44]} 14... f6 {[%clk 0:02:10.9]} 15. exf6 {[%clk 0:02:43]} 15...
Rxf6 {[%clk 0:02:08.4]} 16. e4 {[%clk 0:02:26.6]} 16... Raf8 {[%clk 0:02:00.7]}
17. g3 {[%clk 0:02:24.6]} 17... c4 {[%clk 0:01:48.6]} 18. Bc2 {[%clk 0:02:20.8]}
18... Qc5+ {[%clk 0:01:48.6]} 19. Qf2 {[%clk 0:02:15.3]} 19... Qxf2+ {[%clk
0:01:36.1]} 20. Rxf2 {[%clk 0:02:16.2]} 20... e5 {[%clk 0:01:35.5]} 21. exd5
{[%clk 0:02:13.4]} 21... Bxd5 {[%clk 0:01:34.4]} 22. Raf1 {[%clk 0:02:03.4]}
22... exf4 {[%clk 0:01:31.7]} 23. Rxf4 {[%clk 0:02:02.5]} 23... Rxf4 {[%clk
0:01:30.4]} 24. Rxf4 {[%clk 0:02:03]} 24... Rxf4 {[%clk 0:01:29]} 25. gxf4
{[%clk 0:02:03.9]} 25... Kf7 {[%clk 0:01:23.9]} 26. Kf2 {[%clk 0:02:02.9]} 26...
b5 {[%clk 0:01:10.6]} 27. Ke3 {[%clk 0:02:01.7]} 27... Ke6 {[%clk 0:01:09.2]}
28. Kd4 {[%clk 0:01:56.5]} 28... Kd6 {[%clk 0:01:09.3]} 29. a4 {[%clk
0:01:46.5]} 29... a6 {[%clk 0:01:08.8]} 30. axb5 {[%clk 0:01:40.9]} 30... axb5
{[%clk 0:01:09.7]} 31. Ne4+ {[%clk 0:01:40.9]} 31... Bxe4 {[%clk 0:01:08.3]} 32.
Bxe4 {[%clk 0:01:41.8]} 32... Nc5 {[%clk 0:01:04.6]} 33. Bc2 {[%clk 0:01:38.9]}
33... Nd7 {[%clk 0:01:01.2]} 34. Ke4 {[%clk 0:01:36.7]} 34... Ke6 {[%clk
0:01:00.9]} 35. h4 {[%clk 0:01:31.4]} 35... Nf6+ {[%clk 0:00:59.5]} 36. Kd4
{[%clk 0:01:30.7]} 36... Kd6 {[%clk 0:01:00]} 37. Bf5 {[%clk 0:01:28.5]} 37...
Nd5 {[%clk 0:00:57.6]} 38. Ke4 {[%clk 0:01:24.4]} 38... Nf6+ {[%clk 0:00:56.9]}
39. Kf3 {[%clk 0:01:19]} 39... Kc5 {[%clk 0:00:51]} 40. Be6 {[%clk 0:01:15.7]}
40... Kd6 {[%clk 0:00:46.8]} 41. Bf7 {[%clk 0:01:14.4]} 41... Kc5 {[%clk
0:00:41.8]} 42. f5 {[%clk 0:01:09.7]} 42... b4 {[%clk 0:00:38.6]} 43. Kf4 {[%clk
0:01:05.6]} 43... bxc3 {[%clk 0:00:37.9]} 44. bxc3 {[%clk 0:01:04.6]} 44... Nd5+
{[%clk 0:00:26.1]} 45. Bxd5 {[%clk 0:01:03.7]} 45... Kxd5 {[%clk 0:00:27]} 46.
h5 {[%clk 0:00:51.3]} 46... Kd6 {[%clk 0:00:25.2]} 47. Ke4 {[%clk 0:00:50.2]}
47... Ke7 {[%clk 0:00:18.6]} 48. Ke5 {[%clk 0:00:44.1]} 48... Kf7 {[%clk
0:00:18.1]} 49. Kd5 {[%clk 0:00:42.8]} 49... Kf6 {[%clk 0:00:18.4]} 50. Kxc4
{[%clk 0:00:43.1]} 50... Kxf5 {[%clk 0:00:19]} 51. Kb5 {[%clk 0:00:17]} 51... g5
{[%clk 0:00:18.1]} 52. hxg6 {[%clk 0:00:16.7]} 52... Kxg6 {[%clk 0:00:17.4]} 53.
c4 {[%clk 0:00:15.9]} 53... h5 {[%clk 0:00:17.8]} 54. c5 {[%clk 0:00:16]} 54...
h4 {[%clk 0:00:18.4]} 55. c6 {[%clk 0:00:15.9]} 55... h3 {[%clk 0:00:19]} 56. c7
{[%clk 0:00:16.2]} 56... h2 {[%clk 0:00:19.7]} 57. c8=Q {[%clk 0:00:16.3]} 57...
h1=Q {[%clk 0:00:20.2]} 58. Qg8+ {[%clk 0:00:16.7]} 58... Kf6 {[%clk 0:00:19.7]}
59. Qf8+ {[%clk 0:00:16.9]} 59... Ke5 {[%clk 0:00:19.4]} 60. Qe7+ {[%clk
0:00:16.4]} 60... Kf4 {[%clk 0:00:19.5]} 61. Qd6+ {[%clk 0:00:14.2]} 61... Ke3
{[%clk 0:00:19.6]} 62. Qc5+ {[%clk 0:00:12.9]} 62... Ke2 {[%clk 0:00:18.4]} 63.
Qc2+ {[%clk 0:00:12.7]} 63... Ke3 {[%clk 0:00:16.6]} 64. Qc5+ {[%clk 0:00:12.2]}
64... Ke2 {[%clk 0:00:16.5]} 65. Qc2+ {[%clk 0:00:11.3]} 65... Ke3 {[%clk
0:00:16.8]} 66. Qc6 {[%clk 0:00:10.9]} 66... Qxc6+ {[%clk 0:00:15.1]} 67. Kxc6
{[%clk 0:00:10.8]} 1/2-1/2

[Event "*** Titled Tuesday Blitz"]
[Site "Chess.com"]
[Date "2020.05.05"]
[Round "10"]
[White "ChessWarrior3"]
[Black "Tsukasa06"]
[Result "0-1"]
[WhiteElo "2040"]
[BlackElo "2203"]
[TimeControl "180+1"]
[EndTime "12:00:23 PDT"]
[Termination "Tsukasa06 won by checkmate"]

1. e4 {[%clk 0:03:00.9]} 1... e5 {[%clk 0:02:59]} 2. Nf3 {[%clk 0:03:00.5]} 2...
Nc6 {[%clk 0:02:58.5]} 3. Bb5 {[%clk 0:02:59.8]} 3... g6 {[%clk 0:02:57.7]} 4.
O-O {[%clk 0:02:56.2]} 4... Bg7 {[%clk 0:02:57.1]} 5. Bxc6 {[%clk 0:02:55.2]}
5... dxc6 {[%clk 0:02:56.4]} 6. c3 {[%clk 0:02:55.2]} 6... Ne7 {[%clk
0:02:55.6]} 7. d4 {[%clk 0:02:54.6]} 7... exd4 {[%clk 0:02:53]} 8. cxd4 {[%clk
0:02:55.5]} 8... O-O {[%clk 0:02:52.8]} 9. Nc3 {[%clk 0:02:54.2]} 9... Bg4
{[%clk 0:02:51.1]} 10. Bg5 {[%clk 0:02:50.1]} 10... f6 {[%clk 0:02:42.6]} 11.
Be3 {[%clk 0:02:48.2]} 11... f5 {[%clk 0:02:41.2]} 12. e5 {[%clk 0:02:44]} 12...
Nd5 {[%clk 0:02:38.2]} 13. h3 {[%clk 0:02:39.1]} 13... Bxf3 {[%clk 0:02:32.1]}
14. Qxf3 {[%clk 0:02:38.3]} 14... a6 {[%clk 0:02:25.7]} 15. Rac1 {[%clk
0:02:35.8]} 15... Qd7 {[%clk 0:02:17.7]} 16. Nxd5 {[%clk 0:02:34.5]} 16... cxd5
{[%clk 0:02:16.2]} 17. e6 {[%clk 0:02:24.6]} 17... Qxe6 {[%clk 0:02:07.3]} 18.
Rxc7 {[%clk 0:02:04.9]} 18... Rae8 {[%clk 0:02:03]} 19. Qf4 {[%clk 0:01:57.3]}
19... Qb6 {[%clk 0:01:52.1]} 20. Rfc1 {[%clk 0:01:29.8]} 20... Re4 {[%clk
0:01:48.9]} 21. Qg5 {[%clk 0:01:07.3]} 21... f4 {[%clk 0:01:44.7]} 22. Qxd5+
{[%clk 0:00:45.3]} 22... Qe6 {[%clk 0:01:43.8]} 23. Qxe6+ {[%clk 0:00:35.8]}
23... Rxe6 {[%clk 0:01:42.9]} 24. Bd2 {[%clk 0:00:36.3]} 24... Bxd4 {[%clk
0:01:42.1]} 25. Bc3 {[%clk 0:00:34.6]} 25... Bxc3 {[%clk 0:01:10.1]} 26. R1xc3
{[%clk 0:00:35.5]} 26... Rb6 {[%clk 0:01:09.2]} 27. Rd7 {[%clk 0:00:31.1]} 27...
Rf7 {[%clk 0:01:07.6]} 28. Rd8+ {[%clk 0:00:28.7]} 28... Kg7 {[%clk 0:01:07.2]}
29. b3 {[%clk 0:00:28.6]} 29... Re6 {[%clk 0:01:05.4]} 30. Rcc8 {[%clk 0:00:26]}
30... f3 {[%clk 0:01:00.7]} 31. Rg8+ {[%clk 0:00:22.2]} 31... Kh6 {[%clk
0:00:59.9]} 32. Rc4 {[%clk 0:00:15.8]} 32... g5 {[%clk 0:00:54.5]} 33. g4 {[%clk
0:00:13.3]} 33... b5 {[%clk 0:00:34.4]} 34. Rc5 {[%clk 0:00:12.7]} 34... Rg7
{[%clk 0:00:33.5]} 35. Rf8 {[%clk 0:00:11.6]} 35... Re2 {[%clk 0:00:30.2]} 36.
h4 {[%clk 0:00:11]} 36... gxh4 {[%clk 0:00:28]} 37. Rf6+ {[%clk 0:00:10.6]}
37... Rg6 {[%clk 0:00:27.4]} 38. Rxg6+ {[%clk 0:00:08.2]} 38... hxg6 {[%clk
0:00:25.9]} 39. g5+ {[%clk 0:00:07.2]} 39... Kh5 {[%clk 0:00:25.2]} 40. a4
{[%clk 0:00:07.1]} 40... bxa4 {[%clk 0:00:24.1]} 41. bxa4 {[%clk 0:00:07.1]}
41... Re6 {[%clk 0:00:14.8]} 42. Rc3 {[%clk 0:00:03.6]} 42... Kg4 {[%clk
0:00:14.1]} 43. Kh2 {[%clk 0:00:02.4]} 43... Re2 {[%clk 0:00:12.5]} 44. Kg1
{[%clk 0:00:02.6]} 44... h3 {[%clk 0:00:11.1]} 45. Rc4+ {[%clk 0:00:01.8]} 45...
Kxg5 {[%clk 0:00:10.8]} 46. Rc5+ {[%clk 0:00:02.7]} 46... Kh4 {[%clk 0:00:10.2]}
47. Rc4+ {[%clk 0:00:03.3]} 47... Kh5 {[%clk 0:00:09.7]} 48. Rc5+ {[%clk
0:00:03.8]} 48... g5 {[%clk 0:00:09.3]} 49. Kh2 {[%clk 0:00:02.6]} 49... Kh4
{[%clk 0:00:08.3]} 50. Rc4+ {[%clk 0:00:02.2]} 50... g4 {[%clk 0:00:08.1]} 51.
Kg1 {[%clk 0:00:02.5]} 51... h2+ {[%clk 0:00:07.9]} 52. Kxh2 {[%clk 0:00:02.6]}
52... Rxf2+ {[%clk 0:00:08]} 53. Kg1 {[%clk 0:00:03]} 53... Rg2+ {[%clk
0:00:08.2]} 54. Kh1 {[%clk 0:00:02.6]} 54... Ra2 {[%clk 0:00:08.4]} 55. a5
{[%clk 0:00:02.4]} 55... Kg3 {[%clk 0:00:08.1]} 56. Rc1 {[%clk 0:00:01.6]} 56...
Rxa5 {[%clk 0:00:08]} 57. Rg1+ {[%clk 0:00:01.7]} 57... Kh3 {[%clk 0:00:07.9]}
58. Rc1 {[%clk 0:00:02.6]} 58... Ra2 {[%clk 0:00:07.5]} 59. Rg1 {[%clk
0:00:01.7]} 59... Rh2# {[%clk 0:00:06.7]} 0-1

[Event "*** Titled Tuesday Blitz"]
[Site "Chess.com"]
[Date "2020.05.05"]
[Round "10"]
[White "WPWPWP-2015"]
[Black "Misticpikachu"]
[Result "1/2-1/2"]
[WhiteElo "2439"]
[BlackElo "2311"]
[TimeControl "180+1"]
[EndTime "12:00:29 PDT"]
[Termination "Game drawn - insufficient material"]

1. d4 {[%clk 0:03:00.9]} 1... d5 {[%clk 0:02:59.6]} 2. c4 {[%clk 0:03:00.2]}
2... e6 {[%clk 0:02:59.2]} 3. Nf3 {[%clk 0:03:00]} 3... Nf6 {[%clk 0:02:59.7]}
4. Nc3 {[%clk 0:02:59.6]} 4... Be7 {[%clk 0:03:00.2]} 5. Bf4 {[%clk 0:02:59]}
5... O-O {[%clk 0:03:00.4]} 6. e3 {[%clk 0:02:58.7]} 6... dxc4 {[%clk
0:02:57.9]} 7. Bxc4 {[%clk 0:02:58.1]} 7... b6 {[%clk 0:02:58.6]} 8. O-O {[%clk
0:02:57.3]} 8... Bb7 {[%clk 0:02:59.1]} 9. Rc1 {[%clk 0:02:55.4]} 9... Nbd7
{[%clk 0:02:58.5]} 10. Ne5 {[%clk 0:02:51.7]} 10... Nxe5 {[%clk 0:02:50.6]} 11.
dxe5 {[%clk 0:02:50.6]} 11... Ne4 {[%clk 0:02:43.1]} 12. Nxe4 {[%clk 0:02:39.5]}
12... Bxe4 {[%clk 0:02:44]} 13. f3 {[%clk 0:02:39.3]} 13... Bb7 {[%clk
0:02:37.7]} 14. Bd3 {[%clk 0:02:38.9]} 14... c5 {[%clk 0:02:35.6]} 15. Qc2
{[%clk 0:02:37.9]} 15... h6 {[%clk 0:02:34.4]} 16. Rfd1 {[%clk 0:02:37.3]} 16...
Qc7 {[%clk 0:02:28.1]} 17. Qf2 {[%clk 0:02:11.5]} 17... Rfd8 {[%clk 0:02:05.3]}
18. h4 {[%clk 0:01:59.4]} 18... Rd7 {[%clk 0:01:58.5]} 19. Qg3 {[%clk
0:01:56.9]} 19... Kh8 {[%clk 0:01:57.8]} 20. Bb5 {[%clk 0:01:43.2]} 20... Rxd1+
{[%clk 0:01:56.8]} 21. Rxd1 {[%clk 0:01:42.8]} 21... Rd8 {[%clk 0:01:57.1]} 22.
Rd6 {[%clk 0:01:25.4]} 22... a6 {[%clk 0:01:11.4]} 23. Bd3 {[%clk 0:01:22.5]}
23... Bxd6 {[%clk 0:00:45.2]} 24. exd6 {[%clk 0:01:20.1]} 24... Qd7 {[%clk
0:00:45.5]} 25. e4 {[%clk 0:01:17.4]} 25... f6 {[%clk 0:00:42.5]} 26. e5 {[%clk
0:01:16.6]} 26... f5 {[%clk 0:00:42.5]} 27. h5 {[%clk 0:01:13]} 27... Bc6 {[%clk
0:00:41.7]} 28. Qh4 {[%clk 0:00:57]} 28... b5 {[%clk 0:00:39.2]} 29. Be3 {[%clk
0:00:54.2]} 29... c4 {[%clk 0:00:37.4]} 30. Bc2 {[%clk 0:00:51.4]} 30... Bd5
{[%clk 0:00:34.5]} 31. Bb6 {[%clk 0:00:46.9]} 31... Rc8 {[%clk 0:00:30.7]} 32.
g4 {[%clk 0:00:37.2]} 32... fxg4 {[%clk 0:00:24.2]} 33. Qxg4 {[%clk 0:00:34.1]}
33... Qf7 {[%clk 0:00:23.8]} 34. f4 {[%clk 0:00:32]} 34... Rf8 {[%clk
0:00:21.5]} 35. Qg6 {[%clk 0:00:19.9]} 35... Qxg6+ {[%clk 0:00:20.8]} 36. Bxg6
{[%clk 0:00:09.4]} 36... Bc6 {[%clk 0:00:21.1]} 37. Be3 {[%clk 0:00:08.6]} 37...
Be8 {[%clk 0:00:17.6]} 38. Be4 {[%clk 0:00:05.3]} 38... Bd7 {[%clk 0:00:14.9]}
39. Kf2 {[%clk 0:00:04.6]} 39... Kg8 {[%clk 0:00:14.6]} 40. Ke1 {[%clk 0:00:04]}
40... Rc8 {[%clk 0:00:14]} 41. Kd2 {[%clk 0:00:03.8]} 41... b4 {[%clk
0:00:11.1]} 42. Bb6 {[%clk 0:00:03.4]} 42... c3+ {[%clk 0:00:10.9]} 43. Kc1
{[%clk 0:00:02.2]} 43... Kf7 {[%clk 0:00:06.1]} 44. Bc7 {[%clk 0:00:02.2]} 44...
cxb2+ {[%clk 0:00:06.2]} 45. Kxb2 {[%clk 0:00:02.5]} 45... Ke8 {[%clk
0:00:02.8]} 46. Bb7 {[%clk 0:00:02]} 46... a5 {[%clk 0:00:02.4]} 47. Ba6 {[%clk
0:00:01.6]} 47... Ra8 {[%clk 0:00:02.1]} 48. Bb7 {[%clk 0:00:01.9]} 48... Ra7
{[%clk 0:00:01.6]} 49. Be4 {[%clk 0:00:01.8]} 49... Rxc7 {[%clk 0:00:01.1]} 50.
a3 {[%clk 0:00:02.7]} 50... Bc8 {[%clk 0:00:02]} 51. dxc7 {[%clk 0:00:02.7]}
51... Kd7 {[%clk 0:00:02.9]} 52. axb4 {[%clk 0:00:03]} 52... Kxc7 {[%clk
0:00:03.8]} 53. Kb3 {[%clk 0:00:03.3]} 53... Bb7 {[%clk 0:00:04.7]} 54. bxa5
{[%clk 0:00:03.7]} 54... Bxe4 {[%clk 0:00:04.6]} 55. Kb4 {[%clk 0:00:04.6]}
55... Bd5 {[%clk 0:00:05.5]} 56. Kc5 {[%clk 0:00:05.1]} 56... Kb7 {[%clk
0:00:06.4]} 57. a6+ {[%clk 0:00:05.6]} 57... Kxa6 {[%clk 0:00:06.5]} 58. Kd6
{[%clk 0:00:06.5]} 58... Be4 {[%clk 0:00:06.8]} 59. Ke7 {[%clk 0:00:07.4]} 59...
Bf5 {[%clk 0:00:07.1]} 60. Kf8 {[%clk 0:00:08.3]} 60... Kb5 {[%clk 0:00:07.6]}
61. Kxg7 {[%clk 0:00:09.2]} 61... Kc4 {[%clk 0:00:07.7]} 62. Kxh6 {[%clk
0:00:10.1]} 62... Kd4 {[%clk 0:00:08.4]} 63. Kg5 {[%clk 0:00:11]} 63... Ke4
{[%clk 0:00:08.8]} 64. h6 {[%clk 0:00:11.4]} 64... Kf3 {[%clk 0:00:09.1]} 65.
Kf6 {[%clk 0:00:11.2]} 65... Kxf4 {[%clk 0:00:09.1]} 66. h7 {[%clk 0:00:11.6]}
66... Bxh7 {[%clk 0:00:09.4]} 67. Kxe6 {[%clk 0:00:12.1]} 67... Bf5+ {[%clk
0:00:09.9]} 68. Kf6 {[%clk 0:00:12.8]} 68... Ke4 {[%clk 0:00:10.3]} 69. e6
{[%clk 0:00:13.3]} 69... Bxe6 {[%clk 0:00:10.6]} 1/2-1/2